fUSD/lending_fUSD_20240611
["ID","MTS","AMOUNT","RATE_DAILY","PERIOD"]
[329066915,1718081232612,-146.91563359,0.00010414,2]
[329066916,1718081234349,-365.22436641,0.00010414,2]
[329066917,1718081234373,-150.99,0.00010414,2]
[329066918,1718081234397,-420.0,0.00010846,2]
[329066919,1718081234420,-150.0,0.00010995,2]
[329066920,1718081234443,-150.0,0.00010995,2]
[329066921,1718081234471,-1181.47356857,0.00010996,2]
[329066922,1718081234494,-1620.78792346,0.00010996,2]
[329066923,1718081247133,-223.42794751,0.00010996,2]
[329066924,1718081348226,-958.09137898,0.00010446,2]
[329066925,1718081348250,-155.59394757,0.00010896,2]
[329066926,1718081348274,-5711.7132444,0.00010996,2]
[329066927,1718081348299,-150.0,0.00010999,2]
[329066928,1718081348322,-150.0,0.00010999,2]
[329066929,1718081348346,-300.0,0.00010999,2]
[329066930,1718081348369,-15625.13815425,0.00011,2]
[329066931,1718081348391,-1000.0,0.00011797,2]
[329066932,1718081348414,-736.92486621,0.00011798,2]
[329066933,1718081348466,-1132.42458764,0.00011799,2]
[329066934,1718081348509,-198.38549062,0.00011799,2]
[329066935,1718081348566,-40384.78633033,0.000118,2]
[329066936,1718081354113,-41137.116,0.000118,2]
[329066937,1718081357136,-11936.17915376,0.000118,2]
[329066938,1718081357158,-926.19,0.00011926,2]
[329066939,1718081357182,-1478.15,0.00011967,2]
[329066940,1718081357204,-1661.18,0.0001208,2]
[329066941,1718081357227,-420.0,0.00012087,2]
[329066942,1718081357252,-499.99,0.00012095,2]
[329066943,1718081357274,-200.0,0.00012104,2]
[329066944,1718081357295,-500.0,0.00012182,2]
[329066945,1718081357318,-533.27,0.00012226,2]
[329066946,1718081357340,-4042.41,0.00012421,2]
[329066947,1718081357362,-1837.49,0.0001243,2]
[329066948,1718081357385,-250.0,0.00012452,2]
[329066949,1718081357406,-282.84,0.00012452,2]
[329066950,1718081359566,-512.14,0.00012678,2]
[329066951,1718081361036,-21082.71511301,0.00012871,2]
[329066952,1718081369101,-2817.28488699,0.00012871,2]
[329066953,1718081369128,-250.0,0.00012871,2]
[329066954,1718081369153,-262.85,0.00012907,2]
[329066955,1718081369177,-204.84,0.00012944,2]
[329066956,1718081369202,-552.61739041,0.00013282,2]
[329066964,1718081433143,-303.305,0.00012618,2]
[329066965,1718081433304,-0.02055302,0.00012618,2]
[329066966,1718081433318,-660.71296268,0.00012618,2]
[329066967,1718081433329,-1979.05641477,0.00013282,2]
[329066968,1718081433339,-1000.0,0.00013665,2]
[329066969,1718081433350,-157.35,0.00013699,2]
[329066970,1718081433360,-344.1,0.00013699,2]
[329066971,1718081433370,-238.69,0.00013699,2]
[329066972,1718081433383,-2751.0,0.00013699,2]
[329066973,1718081433393,-6111.06,0.00013699,2]
[329066974,1718081433403,-155.59394756,0.000139,2]
[329066975,1718081433413,-1403.49002146,0.000139,2]
[329066976,1718081433423,-151.26,0.0001399,2]
[329066977,1718081433433,-151.26,0.0001399,2]
[329066978,1718081433443,-151.26,0.0001399,2]
[329066979,1718081433454,-151.26,0.0001399,2]
[329066980,1718081433464,-96.98284881,0.00013994,2]
[329066981,1718081433476,-93.67884217,0.00013994,2]
[329066982,1718081433486,-249.91533656,0.00013994,2]
[329066983,1718081433496,-176.77024669,0.00013994,2]
[329066984,1718081433506,-155.54997054,0.00013998,2]
[329066985,1718081433516,-311.5826994,0.00013998,2]
[329066986,1718081433528,-158.5887227,0.00013998,2]
[329066987,1718081433540,-3395.13253166,0.00013998,2]
[329066988,1718081433550,-2752.62923936,0.00013998,2]
[329066989,1718081433559,-155.69283737,0.00013998,2]
[329066990,1718081433570,-155.09065754,0.00013998,2]
[329066991,1718081433581,-616.72400006,0.00013998,2]
[329066993,1718081433592,-163.37193246,0.00013998,2]
[329066994,1718081433604,-472.82942755,0.00013998,2]
[329066995,1718081433614,-1008.69237273,0.00013999,2]
[329066996,1718081433624,-6875.88745642,0.00013999,2]
[329066997,1718081433637,-544515.47361481,0.00014,2]
[329066998,1718081433649,-55227.401301,0.00014,2]
[329066999,1718081433687,-858.16390953,0.00014,2]
[329067002,1718081439030,-1000.0,0.00013281,2]
[329067003,1718081439040,-188.20708037,0.000139,2]
[329067004,1718081439051,-46794.97741658,0.00014,2]
[329067005,1718081439901,-1554.03918563,0.00014,2]
[329067006,1718081439914,-51687.08889722,0.00014,2]
[329067007,1718081439927,-1499865.0,0.00014,2]
[329067008,1718081439994,-565.87380048,0.00014,2]
[329067015,1718081442239,-1203383.06122105,0.00014,2]
[329067016,1718081442250,-499.99,0.00014,2]
[329067017,1718081442260,-324.65755649,0.00014088,2]
[329067018,1718081442271,-484.02321267,0.00014188,2]
[329067019,1718081442282,-166.49756022,0.00014288,2]
[329067020,1718081442292,-3362.12046384,0.00014488,2]
[329067021,1718081442303,-185.67509373,0.000147,2]
[329067022,1718081442313,-1478.15,0.00014706,2]
[329067023,1718081442323,-512.14,0.00014942,2]
[329067024,1718081442333,-622.79214961,0.00015,2]
[329067025,1718081442344,-155.0,0.00015,2]
[329067026,1718081442354,-157.35,0.00015068,2]
[329067027,1718081442364,-153.82,0.00015068,2]
[329067028,1718081442375,-1000.0,0.00015373,2]
[329067029,1718081442387,-3362.12046375,0.00015877,2]
[329067030,1718081442397,-249.91533654,0.00016247,2]
[329067031,1718081442408,-1415.34,0.00016438,2]
[329067032,1718081442418,-157.35,0.00016438,2]
[329067033,1718081442428,-972.28847172,0.000165,2]
[329067034,1718081442438,-161.94675676,0.000169,2]
[329067035,1718081442448,-1000.0,0.00017081,2]
[329067036,1718081442458,-512.14,0.00017206,2]
[329067037,1718081442469,-644.2202967,0.00017259,2]
[329067038,1718081442479,-58966.69704315,0.00017259,2]
[329067039,1718081442489,-6747.02647076,0.00017259,2]
[329067040,1718081442500,-3362.12046375,0.00017265,2]
[329067041,1718081442509,-1478.15,0.00017446,2]
[329067042,1718081442519,-249.91533654,0.00018499,2]
[329067043,1718081442531,-3362.12046375,0.00018654,2]
[329067044,1718081442543,-2390.43,0.00018674,2]
[329067046,1718081442553,-1000.0,0.00018789,2]
[329067047,1718081442563,-200.0,0.00018833,2]
[329067049,1718081442575,-150.0,0.00019012,2]
[329067051,1718081442587,-324.62980185,0.00019178,2]
[329067053,1718081442598,-500.0,0.00019178,2]
[329067055,1718081442609,-323.97081905,0.00019178,2]
[329067057,1718081442618,-500.0,0.00019178,2]
[329067059,1718081442628,-500.0,0.00019178,2]
[329067061,1718081442640,-500.0,0.00019178,2]
[329067063,1718081442650,-500.0,0.00019178,2]
[329067065,1718081442660,-500.0,0.00019178,2]
[329067066,1718081442670,-500.0,0.00019178,2]
[329067067,1718081442681,-495.02076763,0.00019178,2]
[329067068,1718081442691,-238.69,0.00019178,2]
[329067069,1718081442703,-512.14,0.0001947,2]
[329067070,1718081442713,-150.5,0.00019605,15]
[329067071,1718081442724,-150.5,0.00019615,15]
[329067072,1718081442734,-300.0,0.00019625,2]
[329067073,1718081442745,-549.50595062,0.0002,2]
[329067074,1718081442755,-595.0,0.0002,2]
[329067075,1718081442767,-1013.29291419,0.0002,2]
[329067076,1718081442778,-155.7899877,0.0002,2]
[329067078,1718081442788,-155.0,0.0002,2]
[329067079,1718081442799,-1780.9840789,0.0002,2]
[329067080,1718081442810,-3362.12046375,0.00020043,2]
[329067081,1718081442820,-226.7178388,0.000201,2]
[329067082,1718081442831,-2128.0,0.000201,3]
[329067083,1718081442841,-1000.0,0.00020497,2]
[329067084,1718081442852,-249.91533654,0.00020752,2]
[329067085,1718081442862,-3362.12046375,0.00021431,2]
[329067086,1718081442872,-1000.0,0.00021649,2]
[329067087,1718081442884,-512.14,0.00021734,2]
[329067088,1718081442894,-1403.49002145,0.00021832,2]
[329067089,1718081442904,-250.0,0.00021918,2]
[329067090,1718081442913,-1343.02,0.0002192,2]
[329067091,1718081442923,-1343.02,0.0002192,2]
[329067092,1718081442935,-1343.02,0.0002192,2]
[329067093,1718081442945,-1343.02,0.0002192,2]
[329067094,1718081442955,-1343.02,0.0002192,2]
[329067095,1718081442965,-484.02321265,0.00021976,2]
[329067096,1718081442975,-793.07098815,0.00022,2]
[329067097,1718081442986,-166.49756021,0.00022026,2]
[329067098,1718081442996,-1000.0,0.0002222,2]
[329067099,1718081443006,-1000.0,0.00022281,2]
[329067100,1718081443017,-1000.0,0.00022342,2]
[329067101,1718081443028,-1000.0,0.00022403,2]
[329067102,1718081443039,-1000.0,0.00022464,2]
[329067103,1718081443049,-1000.0,0.00022525,2]
[329067104,1718081443059,-1000.0,0.00022586,2]
[329067105,1718081443070,-1000.0,0.00022647,2]
[329067106,1718081443080,-1000.0,0.00022707,2]
[329067107,1718081443090,-1000.0,0.00022768,2]
[329067108,1718081443101,-3362.12046375,0.0002282,2]
[329067109,1718081443112,-1000.0,0.00022829,2]
[329067110,1718081443122,-1000.0,0.0002289,2]
[329067111,1718081443133,-1000.0,0.00022951,2]
[329067112,1718081443144,-249.91533654,0.00023005,2]
[329067113,1718081443155,-1000.0,0.00023012,2]
[329067114,1718081443165,-1000.0,0.00023073,2]
[329067115,1718081443176,-1000.0,0.00023134,2]
[329067116,1718081443187,-1000.0,0.00023195,2]
[329067117,1718081443198,-1000.0,0.00023256,2]
[329067118,1718081443209,-1000.0,0.00023317,2]
[329067119,1718081443220,-1000.0,0.00023378,2]
[329067120,1718081443230,-29426.51523216,0.000236,2]
[329067121,1718081443240,-512.14,0.00023998,2]
[329067122,1718081443251,-3362.12046375,0.00024208,2]
[329067123,1718081443261,-180.0,0.0002423,2]
[329067124,1718081443272,-312.33,0.00024384,2]
[329067125,1718081443282,-5983.83897237,0.00024798,2]
[329067126,1718081443292,-5983.8389723,0.00024798,2]
[329067127,1718081443304,-5983.8389723,0.00024798,2]
[329067128,1718081443314,-5983.8389723,0.00024798,2]
[329067129,1718081443324,-5983.8389723,0.00024798,2]
[329067130,1718081443335,-5983.8389723,0.00024798,2]
[329067131,1718081443346,-5983.8389723,0.00024798,2]
[329067132,1718081443355,-241.8069946,0.00024799,2]
[329067133,1718081443366,-241.80699452,0.00024799,2]
[329067134,1718081443376,-241.80699452,0.00024799,2]
[329067135,1718081443386,-241.80699452,0.00024799,2]
[329067136,1718081443396,-241.80699452,0.00024799,2]
[329067137,1718081443407,-241.80699452,0.00024799,2]
[329067138,1718081443418,-241.80699452,0.00024799,2]
[329067139,1718081443428,-151.26,0.0002489,2]
[329067140,1718081443439,-163.94201956,0.000249,2]
[329067141,1718081443451,-446.79515573,0.000249,2]
[329067142,1718081443461,-1049.14373841,0.000249,2]
[329067143,1718081443472,-1335.91829346,0.000249,2]
[329067144,1718081443483,-34985.38247423,0.000249,2]
[329067145,1718081443494,-259.90844897,0.000249,2]
[329067146,1718081443504,-677.58225282,0.000249,2]
[329067147,1718081443514,-159.26007305,0.00025,2]
[329067148,1718081443525,-5452.60717927,0.00025,2]
[329067149,1718081443539,-155.56581279,0.00025,2]
[329067150,1718081443550,-181.09635127,0.00025,2]
[329067151,1718081443561,-326.21713808,0.00025,2]
[329067152,1718081443573,-434.27617748,0.00025,2]
[329067153,1718081443587,-326.55047178,0.00025,2]
[329067154,1718081443598,-1277.51036429,0.00025,2]
[329067155,1718081443609,-1250.0,0.00025,2]
[329067156,1718081443622,-249.91533654,0.00025258,2]
[329067157,1718081443633,-3362.12046375,0.00025597,2]
[329067158,1718081443646,-5983.8389723,0.00025987,2]
[329067159,1718081443656,-2250.0,0.00026,2]
[329067160,1718081443667,-152.69985995,0.00026149,2]
[329067161,1718081443678,-165.43335561,0.00026199,2]
[329067162,1718081443689,-152.69985995,0.00026212,2]
[329067163,1718081443701,-512.14,0.00026262,2]
[329067164,1718081443712,-241.80699452,0.00026302,2]
[329067165,1718081443723,-158.23859941,0.0002646,2]
[329067166,1718081443734,-1672.9149936,0.000266,2]
[329067168,1718081443744,-152.95670347,0.00026643,2]
[329067169,1718081443755,-158.23859941,0.00026712,2]
[329067170,1718081443766,-402.61,0.0002675,2]
[329067171,1718081443777,-158.23859941,0.00026951,2]
[329067172,1718081443788,-3362.12046375,0.00026986,2]
[329067173,1718081443798,-165.43335561,0.00026988,2]
[329067174,1718081443809,-155.0,0.00027,2]
[329067175,1718081443820,-4031.76978849,0.00027,2]
[329067176,1718081443831,-165.43335561,0.00027061,2]
[329067177,1718081443842,-152.69985995,0.00027105,2]
[329067178,1718081443853,-154.89891691,0.00027316,2]
[329067179,1718081444016,-500.0,0.00027397,2]
[329067180,1718081444026,-444.53489623,0.00027397,2]
[329067181,1718081444036,-1000.0,0.00027397,14]
[329067182,1718081444046,-172.3,0.00027397,2]
[329067183,1718081444057,-150.15,0.00027397,2]
[329067184,1718081444067,-2103.28914058,0.000274,2]
[329067185,1718081444077,-189.0,0.000274,2]
[329067186,1718081444088,-625.0,0.000274,2]
[329067187,1718081444098,-249.91533654,0.0002751,2]
[329067188,1718081444109,-152.69985995,0.00027585,2]
[329067189,1718081444120,-152.69985995,0.00027613,2]
[329067190,1718081444130,-158.23859941,0.00027687,2]
[329067191,1718081444141,-158.23859941,0.0002779,2]
[329067192,1718081444151,-154.37363826,0.00027822,2]
[329067193,1718081444164,-16253.4856372,0.00027832,2]
[329067194,1718081444175,-2036.15246423,0.00027833,2]
[329067195,1718081444185,-315.31988375,0.00027833,7]
[329067196,1718081444195,-1299.42409849,0.00027833,2]
[329067197,1718081444205,-5983.8389723,0.00027875,2]
[329067198,1718081444215,-431.711033,0.00027913,2]
[329067199,1718081444225,-469.1675983,0.00028,2]
[329067200,1718081444235,-200.598636,0.00028,2]
[329067201,1718081444245,-241.80699452,0.00028032,2]
[329067202,1718081444255,-155.51153738,0.0002809,2]
[329067203,1718081444266,-500.0,0.00028122,2]
[329067204,1718081444275,-2400.0,0.00028122,2]
[329067205,1718081444285,-3100.0,0.00028122,2]
[329067206,1718081444295,-165.43335561,0.00028143,2]
[329067207,1718081444305,-158.23859941,0.00028182,2]
[329067208,1718081444319,-154.89891691,0.00028234,2]
[329067209,1718081444330,-800.0,0.00028247,2]
[329067210,1718081444340,-431.711033,0.00028262,2]
[329067211,1718081444350,-158.23859941,0.0002827,2]
[329067212,1718081444359,-158.23859941,0.00028278,2]
[329067213,1718081444369,-158.23859941,0.00028293,2]
[329067214,1718081444379,-688.72,0.00028356,2]
[329067215,1718081444390,-526.55,0.00028356,2]
[329067216,1718081444400,-526.55,0.00028356,2]
[329067217,1718081444410,-526.55,0.00028356,2]
[329067218,1718081444419,-526.55,0.00028356,2]
[329067219,1718081444430,-3362.12046375,0.00028374,2]
[329067220,1718081444440,-24026.06803377,0.000285,5]
[329067221,1718081444449,-512.14,0.00028525,2]
[329067222,1718081444459,-158.23859941,0.00028582,2]
[329067223,1718081444469,-431.711033,0.0002861,2]
[329067224,1718081444478,-164.37020503,0.00028623,2]
[329067225,1718081444488,-150.15,0.00028643,2]
[329067226,1718081444498,-500.0,0.0002867,2]
[329067227,1718081444507,-3100.0,0.0002867,2]
[329067228,1718081444516,-2400.0,0.0002867,2]
[329067229,1718081444526,-73451.40103784,0.0002868,2]
[329067230,1718081444541,-936.46060201,0.00028712,2]
[329067231,1718081444551,-151.25702288,0.00028722,2]
[329067232,1718081444560,-36519.8048,0.00028799,2]
[329067233,1718081444570,-1000.0,0.00028799,2]
[329067234,1718081444587,-56483.2933,0.00028799,2]
[329067235,1718081444596,-2250.0,0.000288,2]
[329067236,1718081444606,-166.66666666,0.00028823,2]
[329067237,1718081444616,-152.69985995,0.00028858,2]
[329067238,1718081444626,-413.78519686,0.00028898,2]
[329067239,1718081444635,-8542.48792592,0.0002893,7]
[329067240,1718081444646,-431.711033,0.00028959,2]
[329067241,1718081444655,-24447.06690098,0.00029,2]
[329067242,1718081444665,-164.37020503,0.00029004,2]
[329067243,1718081444675,-607.95792758,0.00029006,4]
[329067244,1718081444685,-5226.7641193,0.0002901,2]
[329067245,1718081444694,-212.98045,0.0002901,2]
[329067246,1718081444704,-158.23859941,0.00029063,2]
[329067247,1718081444713,-282.19,0.000291,6]
[329067248,1718081444723,-655.86972568,0.000291,2]
[329067249,1718081444732,-1586.79105317,0.000292,2]
[329067250,1718081444742,-1000.0,0.000292,2]
[329067251,1718081444751,-1184.85529724,0.00029202,2]
[329067252,1718081444762,-157.26562578,0.00029207,2]
[329067253,1718081444771,-500.0,0.00029218,2]
[329067254,1718081444781,-3100.0,0.00029218,2]
[329067255,1718081444791,-2400.0,0.00029218,2]
[329067256,1718081444801,-500.0,0.00029229,2]
[329067257,1718081444811,-500.0,0.00029229,2]
[329067258,1718081444821,-500.0,0.00029229,2]
[329067259,1718081444831,-500.0,0.00029229,2]
[329067260,1718081444841,-500.0,0.00029229,2]
[329067261,1718081444851,-1759.105,0.00029266,4]
[329067262,1718081444861,-1759.106,0.00029266,4]
[329067263,1718081444870,-1759.105,0.00029266,4]
[329067264,1718081444880,-1759.105,0.00029266,4]
[329067265,1718081444892,-1759.105,0.00029266,4]
[329067266,1718081444902,-4082.58606459,0.00029272,2]
[329067267,1718081444912,-158.23859941,0.00029282,2]
[329067268,1718081444922,-151.26,0.0002929,2]
[329067269,1718081444932,-151.26,0.0002929,2]
[329067270,1718081444942,-151.26,0.0002929,2]
[329067271,1718081444952,-151.26,0.0002929,2]
[329067273,1718081444963,-251.28886194,0.00029298,2]
[329067275,1718081444972,-269.6222555,0.00029298,2]
[329067276,1718081444982,-156.30873268,0.00029298,2]
[329067278,1718081444992,-157.41899874,0.00029298,2]
[329067280,1718081445002,-216.95437366,0.00029298,2]
[329067282,1718081445013,-560.30026271,0.00029298,2]
[329067283,1718081445023,-29975.55869259,0.00029298,2]
[329067284,1718081445033,-157.44851905,0.00029298,2]
[329067285,1718081445043,-156.21891339,0.00029298,2]
[329067286,1718081445053,-236.31144653,0.00029298,2]
[329067287,1718081445064,-168.91303339,0.00029298,2]
[329067288,1718081445073,-372.26659834,0.00029298,2]
[329067289,1718081445083,-293.18811258,0.00029298,2]
[329067290,1718081445092,-688.50873059,0.00029298,2]
[329067291,1718081445103,-253.6167127,0.00029298,2]
[329067292,1718081445112,-354.89008786,0.00029298,2]
[329067293,1718081445122,-181.52771032,0.00029298,2]
[329067294,1718081445132,-27624.07661096,0.00029298,2]
[329067295,1718081445143,-525.31539488,0.00029298,2]
[329067296,1718081445154,-155.0,0.00029298,2]
[329067297,1718081445164,-164.04558603,0.00029298,2]
[329067298,1718081445174,-1285.90061414,0.00029298,2]
[329067299,1718081445184,-288.93223031,0.00029298,2]
[329067300,1718081445195,-2367.80644329,0.00029298,2]
[329067301,1718081445205,-283.91322661,0.00029298,2]
[329067302,1718081445215,-257.39624155,0.00029298,2]
[329067303,1718081445225,-1168.66716151,0.00029298,2]
[329067304,1718081445235,-539.79988692,0.00029298,2]
[329067305,1718081445246,-156.75235916,0.00029298,2]
[329067306,1718081445256,-177.75473335,0.00029298,2]
[329067307,1718081445266,-871.01833579,0.00029298,2]
[329067308,1718081445276,-236.92670876,0.00029298,2]
[329067309,1718081445286,-155.00772826,0.00029298,2]
[329067310,1718081445296,-359.53217825,0.00029298,2]
[329067311,1718081445306,-482.47257714,0.00029298,2]
[329067312,1718081445316,-325.89287199,0.00029298,2]
[329067313,1718081445326,-2232.01835413,0.00029298,7]
[329067314,1718081445336,-150.01,0.00029299,2]
[329067315,1718081445346,-5896.54113375,0.00029299,2]
[329067316,1718081445356,-152.66390094,0.00029299,2]
[329067317,1718081445366,-161.00563639,0.00029299,2]
[329067318,1718081445376,-2939775.28199049,0.000293,5]
[329067319,1718081445388,-200.0,0.000293,2]
[329067320,1718081445397,-2000.0,0.000293,2]
[329067321,1718081445407,-200.0,0.000293,2]
[329067322,1718081445417,-2218.363595,0.000293,2]
[329067323,1718081445427,-2000.0,0.000293,2]
[329067324,1718081445437,-200.0,0.000293,2]
[329067325,1718081445447,-176.855373,0.00029308,2]
[329067326,1718081445459,-176.122994,0.00029308,2]
[329067327,1718081445469,-174.948268,0.00029308,2]
[329067328,1718081445479,-209.442227,0.00029308,2]
[329067329,1718081445489,-174.948268,0.00029308,2]
[329067330,1718081445500,-187.083679,0.00029308,2]
[329067331,1718081445510,-167.553781,0.00029308,2]
[329067332,1718081445522,-433.596992,0.00029308,2]
[329067333,1718081445536,-431.711033,0.00029308,2]
[329067334,1718081445547,-152.69985995,0.00029323,2]
[329067335,1718081445557,-152.69985995,0.00029366,2]
[329067336,1718081445567,-447.0,0.00029387,5]
[329067337,1718081445580,-599.0,0.000294,2]
[329067338,1718081445591,-172.47740307,0.000294,2]
[329067339,1718081445601,-997.44,0.000294,2]
[329067340,1718081445613,-1509.40950136,0.00029452,2]
[329067341,1718081445625,-1000.0,0.00029452,14]
[329067342,1718081445638,-1224.34661219,0.00029467,2]
[329067343,1718081445648,-158.23859941,0.00029474,2]
[329067344,1718081445659,-153.9713702,0.0002949,2]
[329067345,1718081445669,-150.0,0.00029495,2]
[329067346,1718081445680,-165.43335561,0.00029501,2]
[329067347,1718081445691,-206.0,0.0002952,2]
[329067348,1718081445702,-1978.0,0.00029531,2]
[329067349,1718081445713,-862.805,0.00029531,2]
[329067350,1718081445724,-1194.0,0.00029531,2]
[329067351,1718081445734,-626.534,0.00029531,2]
[329067352,1718081445744,-13684.765,0.00029564,4]
[329067353,1718081445754,-13684.766,0.00029564,4]
[329067354,1718081445764,-13684.766,0.00029564,4]
[329067355,1718081445774,-13684.765,0.00029564,4]
[329067356,1718081445784,-13684.766,0.00029564,4]
[329067357,1718081445795,-150.0,0.00029573,2]
[329067358,1718081445805,-200.0,0.00029593,2]
[329067359,1718081445815,-2000.0,0.00029593,2]
[329067360,1718081445825,-200.0,0.00029593,2]
[329067361,1718081445836,-2000.0,0.00029593,2]
[329067362,1718081445846,-200.0,0.00029593,2]
[329067363,1718081445856,-150.0,0.00029605,2]
[329067364,1718081445866,-150.0,0.00029617,2]
[329067365,1718081445877,-500.0,0.00029623,2]
[329067366,1718081445888,-200.0,0.00029624,2]
[329067367,1718081445899,-500.0,0.00029624,2]
[329067368,1718081445909,-200.0,0.00029624,2]
[329067369,1718081445919,-150.0,0.00029627,2]
[329067370,1718081445932,-150.0,0.00029633,2]
[329067371,1718081445943,-150.0,0.00029639,2]
[329067372,1718081445953,-150.0,0.00029644,2]
[329067373,1718081445963,-150.0,0.00029654,2]
[329067374,1718081445973,-164.37020505,0.00029663,2]
[329067375,1718081445984,-150.0,0.00029665,2]
[329067376,1718081445994,-150.0,0.00029669,2]
[329067377,1718081446005,-150.0,0.00029688,2]
[329067378,1718081446016,-150.0,0.00029698,2]
[329067379,1718081446027,-150.0,0.00029699,2]
[329067380,1718081446038,-599.0,0.000297,2]
[329067381,1718081446048,-4099.2259,0.000297,2]
[329067382,1718081446058,-450.0,0.000297,2]
[329067383,1718081446068,-4000.0,0.000297,2]
[329067384,1718081446079,-355.0,0.000297,2]
[329067385,1718081446090,-1000.0,0.000297,2]
[329067386,1718081446101,-150.0,0.00029705,2]
[329067387,1718081446112,-150.0,0.00029708,2]
[329067388,1718081446122,-152.69985995,0.00029743,2]
[329067389,1718081446133,-150.0,0.00029746,2]
[329067390,1718081446144,-3362.12046375,0.00029763,2]
[329067391,1718081446154,-166.49756021,0.00029763,2]
[329067392,1718081446164,-249.91533654,0.00029763,2]
[329067393,1718081446175,-5983.8389723,0.00029763,15]
[329067394,1718081446185,-484.02321265,0.00029763,2]
[329067395,1718081446195,-324.65755648,0.00029763,2]
[329067396,1718081446208,-241.80699452,0.00029763,15]
[329067397,1718081446218,-1403.49002145,0.00029763,2]
[329067398,1718081446229,-500.0,0.00029766,2]
[329067399,1718081446239,-3100.0,0.00029766,2]
[329067400,1718081446381,-2400.0,0.00029766,2]
[329067401,1718081446393,-500.0,0.00029766,2]
[329067402,1718081446403,-150.0,0.00029799,2]
[329067403,1718081446414,-722.7893548,0.000298,2]
[329067404,1718081446425,-489.0,0.000298,14]
[329067405,1718081446435,-190.0,0.000298,14]
[329067406,1718081446445,-325.0,0.000298,2]
[329067407,1718081446454,-150.0,0.000298,6]
[329067408,1718081446464,-15860.47194008,0.0002984,3]
[329067409,1718081446474,-151.26,0.00029848,2]
[329067410,1718081446483,-150.0,0.0002985,2]
[329067411,1718081446493,-554.12208281,0.00029852,2]
[329067412,1718081446503,-6901.3008616,0.00029852,2]
[329067413,1718081446513,-9495.1816756,0.00029852,2]
[329067414,1718081446523,-24666.3419303,0.00029852,2]
[329067415,1718081446534,-254.2674934,0.00029852,2]
[329067416,1718081446546,-225.9122543,0.00029852,2]
[329067417,1718081446556,-500.0,0.00029856,2]
[329067418,1718081446566,-500.0,0.00029856,2]
[329067419,1718081446579,-6526.7099419,0.00029858,2]
[329067420,1718081446589,-6152.1190221,0.00029858,2]
[329067421,1718081446599,-8979.7992994,0.00029858,2]
[329067422,1718081446608,-8464.4169232,0.00029858,2]
[329067423,1718081446622,-23327.494676,0.00029858,2]
[329067424,1718081446633,-21988.6474217,0.00029858,2]
[329067425,1718081446646,-240.4662846,0.00029858,2]
[329067426,1718081446655,-226.6650758,0.00029858,2]
[329067427,1718081446665,-213.6501199,0.00029858,2]
[329067428,1718081446675,-201.3879854,0.00029858,2]
[329067429,1718081446685,-7344.31581828,0.00029861,5]
[329067430,1718081446695,-155.40225173,0.00029861,2]
[329067431,1718081446705,-6283.71863153,0.00029861,2]
[329067432,1718081446717,-158.88835757,0.00029861,2]
[329067433,1718081446728,-305.44015871,0.00029861,2]
[329067434,1718081446738,-411.07916426,0.00029861,2]
[329067435,1718081446748,-187.783832,0.00029861,2]
[329067436,1718081446758,-19705.55821115,0.00029861,2]
[329067437,1718081446770,-308.45851722,0.00029861,2]
[329067438,1718081446781,-2896.17191053,0.00029861,2]
[329067439,1718081446792,-155.0,0.00029861,2]
[329067440,1718081446804,-162.64291502,0.00029861,2]
[329067441,1718081446814,-338.68648196,0.00029861,2]
[329067442,1718081446825,-866.71473284,0.00029861,2]
[329067443,1718081446835,-195.82725417,0.00029861,2]
[329067444,1718081446845,-4388.01029113,0.00029861,2]
[329067445,1718081446856,-352.0,0.00029863,2]
[329067446,1718081446865,-500.0,0.00029863,4]
[329067447,1718081446878,-500.0,0.00029863,4]